bitfinex-derivatives/quotes_SOLF0:USTF0_20260217
["timestamp","ask_amount","ask_price","bid_price","bid_amount"]
[1771306952482,8.93484247,86.082,86.029,10.4672]
[1771306952670,8.93484247,86.08,86.029,10.4672]
[1771306953282,8.93418048,86.077,86.02,10.4684]
[1771306953778,8.93418048,86.075,86.028,10.4673]
[1771306955882,8.93418048,86.075,86.018,10.4685]
[1771306959691,9.02728184,86.073,86.018,10.4685]
[1771306960387,9.02235398,86.068,86.007,10.4699]
[1771306960587,9.02235398,86.068,86.004,73.22]
[1771306961584,9.02170069,86.064,86.006,10.47]
[1771306961985,9.02170069,86.064,86.01,2.75159015]
[1771306962689,10.4633,86.063,86.01,2.75159015]
[1771306962993,19.44478266,86.063,86.01,2.75159015]
[1771306963194,8.98148266,86.062,86.01,2.75159015]
[1771306966094,8.97495375,86.046,85.994,422.72253116]
[1771306966298,8.97495375,86.046,85.99,2.75159015]
[1771306967794,8.97437258,86.042,85.99,2.75159015]
[1771306967989,8.97437258,86.042,85.945,28.85880601]
[1771306967990,7.59102598,86.029,85.957,21.1686449]
[1771306968189,10.4686,86.018,85.96,2.75159015]
[1771306968395,7.59102598,86.017,85.96,2.75159015]
[1771306968588,35.08,86.052,85.949,73.22]
[1771306968589,7.59102598,86.046,86.0,2.75159015]
[1771306969481,7.59102598,86.046,86.01,2.75159015]
[1771306969887,7.59102598,86.046,86.0,2.75159015]
[1771306970094,7.58558437,86.044,85.99,13.22359015]
[1771306971299,7.58558437,86.044,86.0,2.75159015]
[1771306974301,7.58558437,86.044,85.99,13.22359015]
[1771306974498,7.5488731,86.041,85.99,2.75159015]
[1771306975896,7.5488731,86.041,85.991,10.4718]
[1771306977503,7.5488731,86.041,86.0,2.75159015]
[1771306978005,7.5488731,86.041,85.991,10.4718]
[1771306978193,7.5488731,86.041,85.99,2.75159015]
[1771306978398,7.53038375,86.039,85.981,10.4731]
[1771306979708,7.53034192,86.037,85.981,10.4731]
[1771306980608,7.52772035,86.034,85.98,2.75159015]
[1771306980810,2.75159015,86.02,85.96,2.75159015]
[1771306981105,7.52772035,86.019,85.96,2.75159015]
[1771306981809,7.52772035,86.016,85.96,2.75159015]
[1771306982709,7.51091096,86.014,85.96,2.75159015]
[1771306983706,7.51091096,86.029,85.98,2.75159015]
[1771306984310,7.50121327,86.026,85.98,2.75159015]
[1771306984510,7.50121327,86.026,85.975,10.4738]
[1771306986605,7.50121327,86.026,85.98,2.75159015]
[1771306987111,7.50121327,86.026,85.975,10.4738]
[1771306992212,7.47373511,86.024,85.97,2.75159015]
[1771306993110,7.47373511,86.019,85.97,2.75159015]
[1771306994514,10.467,86.032,85.98,2.75159015]
[1771306995209,7.47383094,86.035,85.99,2.75159015]
[1771306996710,7.47383094,86.035,85.991,10.4718]
[1771306998010,10.4656,86.044,85.991,10.4718]
[1771306998406,7.48283275,86.041,85.991,10.4718]
[1771306999014,2.75159015,86.05,85.99,2.75159015]
[1771306999015,7.48283275,86.037,85.99,2.75159015]
[1771307000214,7.47733544,86.035,85.982,10.473]
[1771307000819,7.47733544,86.031,85.98,2.75159015]
[1771307001521,7.47733544,86.031,85.981,10.4731]
[1771307002820,7.47527412,86.029,85.972,10.4742]
[1771307003417,7.47527412,86.029,85.97,2.75159015]
[1771307003418,7.47527412,86.028,85.98,10.4732]
[1771307004724,7.47527412,86.028,85.98,13.22479015]
[1771307007020,7.47527412,86.028,85.99,2.75159015]
[1771307008215,2.75159015,86.04,85.99,2.75159015]
[1771307008216,7.47833234,86.046,85.991,10.4719]
[1771307008415,7.47833234,86.045,85.991,10.4719]
[1771307008620,7.47833234,86.045,86.0,2.75159015]
[1771307009021,7.47833234,86.045,85.991,10.4719]
[1771307009521,7.47833234,86.042,85.991,10.4719]
[1771307010326,7.47653835,86.036,85.99,2.75159015]
[1771307010820,7.47653835,86.036,85.981,10.4731]
[1771307011926,7.47240294,86.034,85.981,10.4731]
[1771307013119,7.47240294,86.034,85.99,10.472]
[1771307013931,7.47240294,86.034,85.99,13.22359015]
[1771307017033,7.47240294,86.034,85.99,10.472]
[1771307023841,7.47240294,86.034,85.99,13.22522383]
[1771307027131,7.47240294,86.034,85.99,2.75322383]
[1771307029241,7.47240294,86.034,85.981,10.473]
[1771307031637,10.77560115,86.061,85.98,2.75322383]
[1771307031638,9.51109596,86.054,86.02,2.75322383]
[1771307031844,7.45603642,86.061,86.02,2.75322383]
[1771307031845,18.07780004,86.06,86.02,2.75322383]
[1771307032037,18.07780004,86.059,86.01,2.75322383]
[1771307032233,18.03847727,86.058,86.01,2.75322383]
[1771307032439,8.56670408,86.057,86.02,2.75322383]
[1771307032635,18.03847727,86.059,86.02,2.75322383]
[1771307032846,18.03847727,86.058,86.02,2.75322383]
[1771307033140,8.56670408,86.057,86.02,2.75322383]
[1771307033445,8.56670408,86.059,86.02,2.75322383]
[1771307033643,8.56670408,86.058,86.02,2.75322383]
[1771307033845,7.42034691,86.058,86.02,2.75322383]
[1771307034040,7.42034691,86.056,86.013,10.4692]
[1771307038846,7.41148892,86.055,86.013,10.4692]
[1771307039949,7.42088356,86.054,86.013,10.4692]
[1771307043046,8.56670408,86.056,86.025,10.4677]
[1771307043255,8.56670408,86.063,86.025,10.4677]
[1771307043550,8.56670408,86.062,86.025,10.4677]
[1771307043745,8.56670408,86.061,86.025,10.4677]
[1771307043946,8.56670408,86.06,86.025,10.4677]
[1771307044254,2.75322383,86.09,86.041,10.4658]
[1771307044448,7.42075834,86.089,86.041,10.4658]
[1771307044852,7.42075834,86.089,86.03,13.22042383]
[1771307045053,7.42075834,86.079,86.03,13.22042383]
[1771307048249,7.37526419,86.069,86.02,10.4683]
[1771307049055,7.37526419,86.08,86.03,2.75322383]
[1771307049858,7.36760573,86.092,86.04,2.75322383]
[1771307050058,7.36760573,86.092,86.05,2.75322383]
[1771307050258,7.36760573,86.089,86.03,2.75322383]
[1771307051357,7.36760573,86.089,86.04,2.75322383]
[1771307051559,7.36760573,86.089,86.031,10.467]
[1771307051760,7.36760573,86.079,86.031,10.467]
[1771307053059,7.36760573,86.079,86.026,10.4677]
[1771307053661,7.36760573,86.079,86.03,2.75322383]
[1771307054966,7.36760573,86.079,86.04,10.4659]
[1771307056758,1.03468753,86.048,85.982,3.83070824]
[1771307056964,2.75322383,86.02,85.982,3.83070824]
[1771307057163,1.03468753,86.036,85.982,3.83070824]
[1771307057164,2.75322383,86.03,85.982,3.83070824]
[1771307057462,2.75322383,86.03,85.984,3.83070824]
[1771307058063,0.96929555,86.029,85.984,3.83070824]
[1771307063566,45.65554009,86.085,85.972,10.4742]
[1771307063567,3.70422944,86.113,86.05,3.83070824]
[1771307063869,2.75322383,86.11,86.051,3.83070824]
[1771307064462,2.75322383,86.11,86.054,3.83070824]
[1771307065774,2.75322383,86.11,86.062,3.83070824]
[1771307067167,3.70422944,86.113,86.062,3.83070824]
[1771307072970,3.70422944,86.113,86.07,2.75322383]
[1771307074670,3.70422944,86.113,86.062,3.83070824]
[1771307077180,3.73742119,86.109,86.062,3.83070824]
[1771307086086,3.73742119,86.109,86.065,10.4628]
[1771307086287,3.73742119,86.109,86.07,2.74814516]
[1771307086986,3.73742119,86.109,86.066,3.70011493]
[1771307087888,3.73742119,86.109,86.067,10.4627]
[1771307089886,3.73742119,86.109,86.054,3.94082308]
[1771307090493,3.73742119,86.109,86.061,3.94082308]
[1771307095690,3.73636626,86.106,86.058,3.94082308]
[1771307096796,3.73834734,86.104,86.058,3.94082308]
[1771307098894,3.73834734,86.104,86.061,3.94082308]
[1771307099097,162.4949,86.204,86.071,3.94082308]
[1771307099098,3.75689665,86.119,86.071,3.94082308]
[1771307100095,3.75689665,86.119,86.073,3.94082308]
[1771307100301,3.75689665,86.119,86.081,3.94082308]
[1771307100500,3.76409921,86.132,86.091,3.94082308]
[1771307101997,3.76409921,86.132,86.088,10.4601]
[1771307102398,3.76409921,86.132,86.089,3.94082308]
[1771307103502,3.80416925,86.145,86.091,3.94082308]
[1771307103808,3.80416925,86.157,86.101,3.94082308]
[1771307103999,3.80416925,86.157,86.115,3.94082308]
[1771307104509,3.79980243,86.17,86.12,3.94082308]
[1771307104711,3.79980243,86.17,86.121,3.94082308]
[1771307104909,3.79980243,86.169,86.121,3.94082308]
[1771307105813,3.79980243,86.169,86.121,14.39682308]
[1771307106411,3.79980243,86.169,86.087,73.18]
[1771307106412,3.79980243,86.169,86.125,3.94082308]
[1771307107508,300.911164,86.193,86.068,162.7509]
[1771307107509,3.82003987,86.22,86.141,3.94082308]
[1771307107710,2.74814516,86.2,86.141,3.94082308]
[1771307107910,3.79695526,86.199,86.141,3.94082308]
[1771307108718,3.79695526,86.199,86.152,3.94082308]
[1771307109207,3.79695526,86.212,86.166,10.4506]
[1771307109412,3.79695526,86.212,86.167,3.94082308]
[1771307110418,10.4433,86.227,86.167,3.94082308]
[1771307110419,3.48209929,86.209,86.167,3.94082308]
[1771307111617,3.48209929,86.219,86.167,3.94082308]
[1771307115513,2.74814516,86.21,86.167,3.94082308]
[1771307115714,2.74814516,86.2,86.167,3.94082308]
[1771307115913,3.47771575,86.199,86.146,3.8354975]
[1771307116928,2.74814516,86.21,86.148,3.8354975]
[1771307117116,2.74814516,86.2,86.148,3.8354975]
[1771307118828,2.74814516,86.2,86.153,3.8354975]
[1771307121625,6.27210336,86.2,86.153,3.8354975]
[1771307121825,3.5239582,86.199,86.153,3.8354975]
[1771307126129,2.74814516,86.17,86.123,3.8354975]
[1771307126433,2.74814516,86.17,86.059,21.57825781]
[1771307126434,2.74814516,86.17,86.122,3.8354975]
[1771307127026,2.74814516,86.18,86.122,3.8354975]
[1771307127431,2.74814516,86.18,86.144,3.8354975]
[1771307127834,3.54058658,86.179,86.111,3.8354975]
[1771307128833,3.54058658,86.179,86.134,3.8354975]
[1771307131135,3.54058658,86.179,86.135,10.4543]
[1771307131337,3.54058658,86.179,86.136,3.8354975]
[1771307133139,2.74814516,86.18,86.138,3.8354975]
[1771307133434,2.74814516,86.19,86.138,3.8354975]
[1771307134640,2.74814516,86.19,86.14,3.8354975]
[1771307135839,2.74814516,86.19,86.147,3.8354975]
[1771307138134,2.74814516,86.2,86.149,3.8354975]
[1771307139140,6.35675261,86.2,86.149,3.8354975]
[1771307140532,3.61190948,86.199,86.151,3.8354975]
[1771307140736,3.61190948,86.189,86.131,3.8354975]
[1771307141436,3.61190948,86.189,86.148,10.4528]
[1771307141839,6.35240188,86.18,86.144,3.8354975]
[1771307142042,3.60425672,86.179,86.132,3.8354975]
[1771307143535,2.74814516,86.18,86.145,3.8354975]
[1771307143740,2.74814516,86.19,86.145,3.8354975]
[1771307144038,2.7435951,86.19,86.145,3.8354975]
[1771307144740,2.7435951,86.19,86.147,14.14764901]
[1771307144945,2.7435951,86.19,86.148,3.69484901]
[1771307147944,3.48249916,86.189,86.148,3.69484901]
[1771307149048,2.7435951,86.16,86.089,21.57825781]
[1771307149248,20.8896,86.215,86.092,7.44155111]
[1771307149249,2.7435951,86.13,86.092,7.44155111]
[1771307149548,2.7435951,86.14,86.092,7.44155111]
[1771307149756,2.7435951,86.14,86.094,7.44155111]
[1771307150653,2.7435951,86.14,86.101,7.46385278]
[1771307157359,2.7435951,86.12,86.071,7.38762392]
[1771307159259,10.4548,86.132,86.071,7.38762392]
[1771307159464,2.7435951,86.14,86.091,7.38696112]
[1771307160462,2.7435951,86.13,86.091,7.38696112]
[1771307160768,2.7435951,86.14,86.091,7.38696112]
[1771307162057,2.7435951,86.13,86.091,7.38696112]
[1771307162465,2.7435951,86.13,86.078,7.36740098]
[1771307162664,2.7435951,86.12,86.078,7.36740098]
[1771307163059,10.4564,86.119,86.078,7.36740098]
[1771307163861,9.40764667,86.139,86.081,7.37004673]
[1771307164067,2.7435951,86.16,86.101,7.37004673]
[1771307165155,2.7435951,86.15,86.103,7.37004673]
[1771307166169,2.7435951,86.14,86.103,7.37004673]
[1771307166371,2.7435951,86.14,86.089,7.33385716]
[1771307167458,13.1974951,86.14,86.089,7.33385716]
[1771307169272,2.7435951,86.15,86.091,7.34005183]
[1771307169466,2.7435951,86.16,86.101,7.34005183]
[1771307169664,2.7435951,86.17,86.111,7.34005183]
[1771307170266,10.4506,86.167,86.111,7.34005183]
[1771307170471,2.7435951,86.16,86.111,7.34005183]
[1771307171679,10.4519,86.156,86.111,7.34005183]
[1771307174774,10.4531,86.147,86.096,7.37953836]
[1771307176475,2.7435951,86.13,86.077,7.37978569]
[1771307176666,45.58098268,86.173,86.081,7.37978569]
[1771307176667,2.7435951,86.14,86.081,7.37978569]
[1771307177674,10.4545,86.135,86.081,7.37978569]
[1771307178076,2.7435951,86.14,86.081,7.37978569]
[1771307178279,2.7435951,86.14,86.091,7.39428344]
[1771307178680,10.4541,86.138,86.091,7.39428344]
[1771307186077,10.4528,86.149,86.091,7.39428344]
[1771307186382,2.7435951,86.14,86.091,7.39428344]
[1771307190773,2.7435951,86.15,86.093,7.40944633]
[1771307190977,8.56335089,86.159,86.101,7.40944633]
[1771307190978,28.31885294,86.159,86.101,7.40944633]
[1771307191180,19.01485089,86.159,86.101,7.40944633]
[1771307191379,19.01485089,86.159,86.1,2.7435951]
[1771307191380,10.4515,86.159,86.104,7.40944633]
[1771307193083,10.4518,86.157,86.104,7.40944633]
[1771307193282,9.30400205,86.156,86.104,7.40944633]
[1771307193583,35.82959543,86.235,86.065,21.68479968]
[1771307193584,9.30400205,86.174,86.131,7.40413284]
[1771307193781,17.97417935,86.188,86.131,7.40413284]
[1771307193982,9.30400205,86.187,86.131,7.40413284]
[1771307194184,8.6701773,86.187,86.141,7.41240904]
[1771307194384,2.7435951,86.18,86.141,7.41240904]
[1771307194983,10.4491,86.179,86.141,7.41240904]
[1771307195688,10.4491,86.179,86.121,7.41240904]
[1771307198287,10.4491,86.179,86.131,7.39975289]
[1771307199287,2.7435951,86.19,86.131,7.39975289]
[1771307200186,2.7435951,86.18,86.131,7.39975289]
[1771307200887,10.4475,86.193,86.131,7.39975289]
[1771307201088,2.7435951,86.18,86.131,7.39975289]
[1771307203689,18.02155336,86.205,86.141,7.41384505]
[1771307203690,2.7435951,86.2,86.141,7.41384505]
[1771307203892,14.38203589,86.229,86.161,7.41384505]
[1771307203893,2.7435951,86.21,86.161,7.41384505]
[1771307205897,10.4455,86.209,86.161,7.41384505]
[1771307216907,2.74206147,86.2,86.161,7.41384505]
[1771307218811,2.74206147,86.19,86.15,7.43423293]
[1771307221310,10.4483,86.186,86.15,7.43423293]
[1771307224214,2.74206147,86.18,86.131,7.39441351]
[1771307224820,2.74206147,86.17,86.131,7.39441351]
[1771307225212,2.74206147,86.16,86.118,7.39281617]
[1771307226517,2.74206147,86.17,86.118,7.39281617]
[1771307226717,10.4505,86.168,86.118,7.39281617]
[1771307227319,2.74206147,86.16,86.118,7.39281617]
[1771307230220,17.86687347,86.186,86.121,7.36221442]
[1771307230414,2.74206147,86.2,86.141,7.36221442]
[1771307230614,2.74206147,86.19,86.141,7.36221442]
[1771307230820,2.74206147,86.18,86.141,7.36221442]
[1771307231321,10.4479,86.189,86.141,7.36221442]
[1771307232218,10.4479,86.189,86.124,7.34620891]
[1771307232219,2.74206147,86.18,86.124,7.34620891]
[1771307234125,2.74206147,86.17,86.124,7.34620891]
[1771307239727,10.4496,86.175,86.13,2.74206147]
[1771307239928,10.4496,86.175,86.131,7.36104296]
[1771307243328,10.4504,86.169,86.131,7.36104296]
[1771307244326,2.74206147,86.18,86.131,7.36104296]
[1771307245731,10.4491,86.179,86.131,7.36104296]
[1771307247736,2.74206147,86.19,86.132,7.39481147]
[1771307249832,2.74206147,86.19,86.14,2.74206147]
[1771307250029,2.74206147,86.19,86.141,7.38713726]
[1771307250236,10.4479,86.189,86.141,7.38713726]
[1771307251230,10.4491,86.18,86.141,7.38713726]
[1771307252330,10.4479,86.189,86.141,7.38713726]
[1771307262844,17.88462713,86.195,86.142,10.4535]
[1771307263048,10.4468,86.198,86.151,7.36023114]
[1771307263247,9.2761046,86.198,86.151,7.36023114]
[1771307263442,9.2761046,86.199,86.151,7.36023114]
[1771307263642,9.2761046,86.198,86.151,7.36023114]
[1771307263847,9.2761046,86.199,86.151,7.36023114]
[1771307264047,9.2761046,86.198,86.151,7.36023114]
[1771307264249,9.2761046,86.199,86.153,7.35775648]
[1771307265247,17.88462713,86.203,86.153,7.35775648]
[1771307265550,9.2761046,86.202,86.153,7.35775648]
[1771307265743,9.2761046,86.201,86.153,7.35775648]
[1771307265943,9.2761046,86.2,86.153,7.35775648]
[1771307266243,9.2761046,86.203,86.153,7.35775648]
[1771307266543,9.2761046,86.204,86.153,7.35775648]
[1771307267251,2.74232734,86.2,86.153,7.35775648]
[1771307268638,9.2761046,86.208,86.153,7.35775648]
[1771307268843,9.2761046,86.207,86.153,7.35775648]
[1771307269045,9.2761046,86.206,86.153,7.35775648]
[1771307269263,9.2761046,86.209,86.153,7.35775648]
[1771307269551,9.2761046,86.208,86.153,7.35775648]
[1771307269848,9.2761046,86.207,86.156,7.36656133]
[1771307270047,9.2761046,86.209,86.156,7.36656133]
[1771307270248,9.2761046,86.208,86.156,7.36656133]
[1771307270448,9.2761046,86.209,86.156,7.36656133]
[1771307270645,9.2761046,86.208,86.156,7.36656133]
[1771307270846,2.74232734,86.2,86.156,7.36656133]
[1771307271750,10.4453,86.211,86.16,7.36488561]
[1771307271946,2.74232734,86.21,86.16,7.36488561]
[1771307272146,17.88462713,86.213,86.162,7.36351944]
[1771307272346,2.74232734,86.21,86.162,7.36351944]
[1771307273240,2.74232734,86.21,86.167,7.36266297]
[1771307274351,17.88462713,86.213,86.167,7.36266297]
[1771307274749,17.88462713,86.213,86.169,7.35598355]
[1771307275253,2.74232734,86.21,86.169,7.35598355]
[1771307277248,73.12,86.214,86.17,7.35471811]
[1771307277648,2.74232734,86.22,86.17,7.35471811]
[1771307278053,2.74232734,86.22,86.171,7.35471811]
[1771307278654,2.74232734,86.22,86.174,10.4496]
[1771307278850,2.74232734,86.22,86.175,7.35375623]
[1771307280251,20.73708128,86.22,86.175,7.35375623]
[1771307280648,2.74232734,86.21,86.165,10.4507]
[1771307280849,2.74232734,86.21,86.165,17.82801498]
[1771307281047,2.74232734,86.21,86.166,7.37655177]
[1771307281759,2.74232734,86.2,86.153,7.37655177]
[1771307281955,2.74232734,86.19,86.153,7.37655177]
[1771307282459,73.1,86.199,86.153,7.37655177]
[1771307290660,2.74232734,86.22,86.161,7.37850944]
[1771307290866,73.12,86.217,86.161,7.37850944]
[1771307291068,18.00770605,86.216,86.161,7.37850944]
[1771307291767,18.00770605,86.229,86.181,7.37783596]
[1771307291960,18.00770605,86.229,86.131,162.6311]
[1771307291961,2.74232734,86.24,86.191,7.37783596]
[1771307292164,2.74232734,86.24,86.193,10.4473]
[1771307292358,2.74232734,86.23,86.193,10.4473]
[1771307292554,2.74232734,86.23,86.193,17.7915472]
[1771307292864,2.74232734,86.23,86.194,7.3442472]
[1771307293160,2.74232734,86.23,86.196,7.3435645]
[1771307294363,2.74232734,86.25,86.199,7.33866686]
[1771307295669,2.74232734,86.25,86.204,7.33730989]
[1771307295870,2.74232734,86.24,86.204,7.33730989]
[1771307297166,2.74232734,86.25,86.204,7.33730989]
[1771307297569,2.74232734,86.25,86.207,7.33937297]
[1771307298275,2.74232734,86.25,86.209,7.34218078]
[1771307299362,2.74232734,86.24,86.209,7.34218078]
[1771307300563,2.74232734,86.25,86.209,7.34218078]
[1771307302071,2.74232734,86.24,86.209,7.34218078]
[1771307302275,2.74232734,86.24,86.195,7.3264554]
[1771307303665,2.74232734,86.25,86.197,7.32584719]
[1771307304368,73.1,86.252,86.197,7.32584719]
[1771307304369,2.74232734,86.24,86.197,7.32584719]
[1771307304673,2.74232734,86.24,86.2,10.4465]
[1771307304874,2.74232734,86.24,86.201,7.27251169]
[1771307305364,2.74232734,86.24,86.2,10.4465]
[1771307305365,2.74232734,86.27,86.211,7.27188378]
[1771307305567,10.4372,86.277,86.211,7.27188378]
[1771307305764,2.74232734,86.3,86.241,7.27188378]
[1771307305962,18.18414314,86.304,86.242,7.27188378]
[1771307305963,2.74232734,86.29,86.242,7.27188378]
[1771307306164,2.74232734,86.27,86.212,7.21383853]
[1771307306364,2.74232734,86.27,86.218,7.21383853]
[1771307306568,2.74232734,86.26,86.218,7.21383853]
[1771307309271,2.74232734,86.27,86.221,7.18997688]
[1771307310173,2.74232734,86.29,86.24,2.74232734]
[1771307310376,73.16,86.298,86.241,7.18864923]
[1771307310579,2.74232734,86.29,86.241,7.18864923]
[1771307311276,2.74232734,86.29,86.242,7.18801586]
[1771307312675,73.18,86.302,86.246,7.19188194]
[1771307312980,2.74232734,86.29,86.246,7.19188194]
[1771307316380,2.74232734,86.29,86.249,7.21024941]
[1771307317783,2.74232734,86.29,86.253,7.20967239]
[1771307320684,2.74232734,86.3,86.253,7.20967239]
[1771307320881,2.74232734,86.3,86.256,7.2069176]
[1771307321081,2.74232734,86.29,86.256,7.2069176]
[1771307323581,2.74232734,86.29,86.179,21.58440197]
[1771307323582,2.74232734,86.29,86.244,7.20666801]
[1771307325180,2.74232734,86.28,86.244,7.20666801]
[1771307325978,2.73741772,86.28,86.244,7.20666801]
[1771307327087,2.73741772,86.29,86.244,7.20666801]
[1771307328291,2.73741772,86.29,86.249,7.20861322]
[1771307328893,2.73741772,86.29,86.251,7.20861322]
[1771307329601,2.73741772,86.29,86.24,2.73741772]
[1771307329602,2.73741772,86.3,86.254,7.20811919]
[1771307330297,2.73741772,86.3,86.206,426.74950312]
[1771307330298,2.73741772,86.27,86.231,7.1938108]
[1771307330491,18.18414314,86.304,86.206,426.74950312]
[1771307330492,2.73741772,86.26,86.207,7.1938108]
[1771307330690,2.73741772,86.25,86.207,7.1938108]
[1771307331304,2.73741772,86.25,86.209,7.19332754]
[1771307331503,2.73741772,86.26,86.209,7.19332754]
[1771307331704,2.73741772,86.25,86.209,7.19332754]
[1771307332796,2.73741772,86.25,86.213,7.18847434]
[1771307333497,2.73741772,86.25,86.216,7.18800018]
[1771307334800,17.89757296,86.283,86.219,7.18778031]
[1771307335002,2.73741772,86.25,86.219,7.18778031]
[1771307337104,2.73741772,86.26,86.219,7.18778031]
[1771307342101,9.45431874,86.282,86.191,7.19649381]
[1771307342102,2.73741772,86.24,86.191,7.19649381]
[1771307342306,2.73741772,86.24,86.193,7.19649381]
[1771307343104,10.4408,86.248,86.196,7.19607631]
[1771307345410,2.73741772,86.24,86.196,7.19607631]
[1771307349009,10.4408,86.248,86.196,7.19607631]
[1771307349510,2.73741772,86.24,86.196,7.19607631]
[1771307351112,17.93481727,86.266,86.21,2.73741772]
[1771307351411,10.4382,86.27,86.211,7.23326767]
[1771307351412,2.73741772,86.25,86.211,7.23326767]
[1771307352713,10.4407,86.248,86.211,7.23326767]
[1771307355219,2.73741772,86.25,86.211,7.23326767]
[1771307357622,10.4394,86.259,86.211,7.23326767]
[1771307358221,10.4382,86.269,86.211,7.23326767]
[1771307358420,2.73741772,86.27,86.221,7.24655512]
[1771307359823,2.73741772,86.27,86.223,7.24623023]
[1771307362522,10.437,86.279,86.223,7.24623023]
[1771307364632,2.73741772,86.27,86.225,7.24241933]
[1771307364932,10.437,86.279,86.225,7.24241933]
[1771307365132,73.06,86.306,86.225,7.24241933]
[1771307365133,10.4383,86.268,86.225,80.30241933]
[1771307365430,10.4383,86.268,86.226,7.24211552]
[1771307365626,2.73741772,86.27,86.226,7.24211552]
[1771307370230,17.9323814,86.287,86.226,7.24211552]
[1771307370428,2.73741772,86.27,86.226,7.24211552]
[1771307372927,10.4375,86.275,86.226,7.24211552]
[1771307375334,10.4378,86.273,86.226,7.24211552]
[1771307375536,9.42671918,86.272,86.226,7.24211552]
[1771307375734,9.42671918,86.271,86.226,7.24211552]
[1771307375933,9.42671918,86.272,86.226,7.24211552]
[1771307376526,9.42671918,86.271,86.226,7.24211552]
[1771307376728,9.42671918,86.272,86.226,7.24211552]
[1771307376926,9.42671918,86.271,86.226,7.24211552]
[1771307377125,9.42671918,86.27,86.226,7.24211552]
[1771307377327,9.42671918,86.272,86.226,7.24211552]
[1771307377532,9.42671918,86.271,86.226,7.24211552]
[1771307377732,9.42671918,86.272,86.226,7.24211552]
[1771307378037,9.42671918,86.271,86.226,7.24211552]
[1771307378236,9.42671918,86.272,86.226,7.24211552]
[1771307378439,9.42671918,86.271,86.226,7.24211552]
[1771307378641,9.42671918,86.272,86.226,7.24211552]
[1771307378840,9.42671918,86.271,86.226,7.24211552]
[1771307379040,10.438,86.271,86.226,7.24211552]
[1771307379238,19.86471918,86.271,86.226,7.24211552]
[1771307379440,10.438,86.271,86.226,7.24211552]
[1771307380941,19.86471918,86.271,86.226,7.24211552]
[1771307381140,10.438,86.271,86.226,7.24211552]
[1771307384241,9.42671918,86.277,86.226,7.24211552]
[1771307384543,9.42671918,86.276,86.226,7.24211552]
[1771307384741,9.42671918,86.275,86.226,7.24211552]
[1771307384943,9.48094118,86.274,86.226,7.24211552]
[1771307385141,9.48094118,86.273,86.226,7.24211552]
[1771307385344,9.48094118,86.272,86.226,7.24211552]
[1771307385643,10.4374,86.276,86.226,7.24211552]
[1771307386238,19.91834118,86.276,86.226,7.24211552]
[1771307386444,10.4384,86.268,86.226,7.24211552]
[1771307388746,10.7671274,86.292,86.208,10.4455]
[1771307388747,10.4393,86.26,86.211,7.2277724]
[1771307389046,2.73845123,86.25,86.191,7.2277724]
[1771307389241,2.73845123,86.24,86.191,7.2277724]
[1771307390738,10.4419,86.239,86.191,7.2277724]
[1771307394542,10.4432,86.228,86.191,7.2277724]
[1771307394945,2.73845123,86.24,86.191,7.2277724]
[1771307395852,10.4419,86.238,86.191,7.2277724]
[1771307400363,2.73845123,86.22,86.179,7.27264923]
[1771307401566,10.4434,86.226,86.179,7.27264923]
[1771307401767,10.4434,86.226,86.145,21.58440197]
[1771307401768,10.4421,86.237,86.181,7.27246094]
[1771307402160,2.73845123,86.24,86.181,7.27246094]
[1771307402362,2.73845123,86.23,86.181,7.27246094]
[1771307402561,10.4418,86.239,86.181,7.27246094]
[1771307404467,2.73845123,86.23,86.181,7.27246094]
[1771307404970,2.73845123,86.22,86.181,7.27246094]
[1771307405473,2.73845123,86.21,86.169,7.27662237]
[1771307406169,17.9537215,86.229,86.15,2.73845123]
[1771307406170,2.73845123,86.2,86.156,7.27900446]
[1771307406471,10.446,86.204,86.156,7.27900446]
[1771307407068,2.73845123,86.2,86.156,7.27900446]
[1771307407664,10.4467,86.199,86.156,7.27900446]
[1771307408768,10.4478,86.19,86.156,7.27900446]
[1771307408963,13.18625123,86.19,86.156,7.27900446]
[1771307409170,13.18625123,86.19,86.14,2.73845123]
[1771307409171,13.18625123,86.19,86.141,7.27172695]
[1771307410472,10.4478,86.19,86.141,7.27172695]
[1771307412069,13.18625123,86.19,86.141,7.27172695]
[1771307412266,10.4491,86.179,86.141,7.27172695]
[1771307415372,10.4491,86.179,86.121,7.30418454]
[1771307415867,10.4491,86.179,86.13,2.73845123]
[1771307416064,10.4491,86.179,86.131,7.30418454]
[1771307420476,10.4465,86.201,86.141,7.30755323]
[1771307420677,73.12,86.206,86.161,7.30755323]
[1771307421884,2.73845123,86.2,86.161,7.30755323]
[1771307424189,2.73845123,86.19,86.141,7.26892944]
[1771307425693,2.73845123,86.18,86.141,7.26892944]
[1771307426787,10.448,86.188,86.141,7.26892944]
[1771307429288,10.4469,86.198,86.143,10.4534]
[1771307429495,73.12,86.209,86.151,7.28059378]
[1771307429994,2.73845123,86.2,86.151,7.28059378]